[Event "55th Biel Festival MTO 2022"]
[Site "Biel"]
[Date "2022.07.18"]
[Round "5.36"]
[White "Mamedov Edgar"]
[Black "Meduri, Aakaash"]
[Result "1/2-1/2"]
[ECO "E01"]
[WhiteElo "2227"]
[BlackElo "2000"]
[Annotator "TA"]
[PlyCount "91"]
[EventDate "2022.07.13"]
[EventType "swiss"]
[EventCountry "SUI"]
[SourceTitle "playchess.com"]
[Source "ChessBase"]
[SourceQuality "1"]
[TimeControl "40/5400+30:1800+30"]

{[%evp 15,91,-32,0,-4,0,0,22,22,55,58,37,43,44,37,55,60,55,12,15,20,14,0,0,0,0,0,0,0,39,44,49,24,27,-15,41,-108,-45,-60,-57,-98,-48,-86,-61,-110,-116,-137,-107,-197,0,-114,0,-214,-200,-393,-190,-166,-35,-178,-173,-185,-189,-180,-139,-133,-130,-144,-153,-139,-139,-121,0,0,0,0,0,0,0,0]} 1. d4 {[%emt 0:00:06]} d5 {[%emt 0:00:46]} 2. c4 {[%emt 0:00:23]} e6 {[%emt 0:00:16]} 3. Nf3 {[%emt 0:00:51]} c6 {[%emt 0:01:01]} 4. Nc3 {[%emt 0:02:04]} dxc4 {[%emt 0:06:02]} 5. g3 {[%emt 0:05:03]} b5 {[%emt 0:04:39]} 6. Bg2 {[%emt 0:01:18]} Bb7 {[%emt 0:04:26]} 7. O-O {[%emt 0:01:05]} Nd7 {[%emt 0:04:27]} 8. e4 {[%emt 0:06:43][%cal Be2e4,Be4e5][%mdl 32]} Ngf6 {[%emt 0:04:43]} 9. e5 {[%emt 0:11:18] E01: Catalan: Early deviations.} Nd5 {[%emt 0:01:50]} 10. Ng5 {[%emt 0:01:23] Qh5 is the strong threat.} N7b6 {[%emt 0:27:09]} 11. Qh5 {[%emt 0:15:55][%csl Gg5,LRe6,LRf7,LRh7][%cal Rh5f7][%mdl 1024] White has compensation.} g6 {[%emt 0:06:30]} 12. Qf3 {[%emt 0:04:29][%csl Gg5][%cal Rf3f7]} Qd7 {[%emt 0:03:17] [#]} 13. Nge4 $146 {[%emt 0:09:16]} ({Predecessor:} 13. a4 Nxc3 14. bxc3 Nd5 15. Ne4 a5 16. axb5 Be7 17. bxc6 Bxc6 18. Bh6 a4 19. Rfb1 {1-0 (28) Haik,A (2410)-Kharlov,A (2580) Metz 1993}) 13... h6 {[%emt 0:04:29]} 14. a4 {[%emt 0:05:07]} b4 {[%emt 0:04:38]} 15. Nxd5 {[%emt 0:06:51]} Nxd5 {[%emt 0:00:25]} 16. a5 {[%emt 0:03:13] Hoping for Nf6+.} Ba6 $1 {[%emt 0:11:21]} 17. Nf6+ {[%emt 0:08:33]} Nxf6 {[%emt 0:00:20]} 18. Qxf6 {[%emt 0:02:10]} Rg8 {[%emt 0:02:36]} 19. Rd1 {[%emt 0:02:20]} Bb5 {[%emt 0:01:49]} 20. Be3 {[%emt 0:02:47]} Rd8 {[%emt 0:04:00]} 21. Qf3 {[%emt 0:06:20]} Qc7 {[%emt 0:01:37]} (21... c3 22. bxc3 bxc3 23. Qe4 $16) 22. Qe4 {[%emt 0:01:54]} h5 {[%emt 0:01:54]} 23. h3 {[%emt 0:00:37]} Be7 {[%emt 0:00:44]} 24. Kh2 {[%emt 0:00:40]} Rd7 {[%emt 0:01:30]} ({Better is} 24... h4 $11) 25. f4 {[%emt 0:00:59]} (25. Bf1 $14 {keeps the upper hand.}) 25... Qc8 {[%emt 0:00:33]} (25... Kf8 $17) 26. Qc2 $15 {[%emt 0:00:24]} Qa6 {[%emt 0:00:37]} 27. Qe4 {[%emt 0:00:50]} Kd8 {[%emt 0:00:43]} (27... Kf8 $17) 28. Rdc1 {[%emt 0:00:17]} Kc7 {[%emt 0:01:13]} 29. Rd1 {[%emt 0:00:53]} (29. Qc2 $1 $15) 29... Rgd8 $17 {[%emt 0:00:27][%cal Oc6c5]} 30. Qc2 {[%emt 0:00:23]} Kb8 {[%emt 0:00:38][%cal Oc6c5]} 31. Bf2 {[%emt 0:00:35] [#]} (31. Qf2 $17) 31... Kc7 {[%emt 0:00:29]} (31... c5 $1 $19 {[%cal Rc5d4]} 32. Rd2 (32. Qe4 $2 cxd4 33. Rxd4 Bc6 $19) 32... cxd4) 32. Be3 {[%emt 0:00:05]} Kb8 {[%emt 0:00:20]} (32... c5 $17 {[%cal Rc5d4]} 33. Qf2 (33. dxc5 Rxd1 34. Rxd1 Rxd1 $17) 33... Bc6) 33. Bf2 $19 {[%emt 0:00:06]} c5 {[%emt 0:00:48][%cal Rc5d4]} 34. dxc5 $2 {[%emt 0:01:41]} (34. Qe4 {is a better defense.}) 34... Rxd1 {[%emt 0:00:17]} (34... b3 $142 35. Qe2 c3) 35. Rxd1 {[%emt 0:00:05]} Rd3 {[%emt 0:00:18]} (35... Rxd1 $19 36. Qxd1 Bc6) 36. Be4 {[%emt 0:00:36]} (36. Rxd3 $1 $15 cxd3 37. Qd1) 36... Rxd1 {[%emt 0:00:24]} 37. Qxd1 {[%emt 0:00:07]} Qxa5 {[%emt 0:00:15]} 38. Bg2 {[%emt 0:01:04][%cal Of4f5]} Kc7 {[%emt 0:01:12] Strongly threatening ...Qa6.} 39. Qf3 {[%emt 0:00:25] Threatens to win with Qb7+.} Qa6 {[%emt 0:00:30] Prevents Qb7+.} 40. Qa8 {[%emt 0:00:48]} c3 {[%emt 0:00:38]} 41. bxc3 {[%emt 0:30:45]} bxc3 {[%emt 0:03:00] White must now prevent ...c2.} 42. Be1 {[%emt 0:00:00]} ({Avoid the trap} 42. Be4 $2 c2 43. Be3 {[#]} (43. Bxc2 $2 Bc6 $19) 43... Bxc5 $1 $19 {[%mdl 512]}) 42... c2 {[%emt 0:08:26]} ({Black should play} 42... Bxc5 $17 {aiming for ...c2.} 43. Bxc3 Qc8 44. Ba5+ Kd7) 43. Ba5+ $1 $11 {[%emt 0:00:00] The position is equal.} Qxa5 {[%emt 0:00:18]} 44. Qb7+ {[%emt 0:00:00]} Kd8 {[%emt 0:00:13]} 45. Qa8+ {[%emt 0:00:00]} Kc7 {[%emt 0:01:46]} (45... Kd7 {is a self mate.} 46. c6+ Bxc6 47. Bxc6+ Kc7 48. Qb7+ Kd8 49. Qd7#) 46. Qb7+ {[%emt 0:00:00] Weighted Error Value: White=0.27 (precise) /Black=0.36} 1/2-1/2

[Event "55th Biel Festival MTO 2022"]
[Site "Biel"]
[Date "2022.07.18"]
[Round "5.37"]
[White "Foerster-Yialamas Lucas"]
[Black "Dushyant Sharma"]
[Result "0-1"]
[ECO "C70"]
[WhiteElo "2147"]
[BlackElo "2416"]
[Annotator "TA"]
[PlyCount "48"]
[EventDate "2022.07.13"]
[EventType "swiss"]
[EventCountry "SUI"]
[SourceTitle "playchess.com"]
[Source "ChessBase"]
[SourceQuality "1"]
[TimeControl "40/5400+30:1800+30"]

{[%evp 9,48,53,73,1,-20,-20,-7,-17,-12,-39,-39,-51,-31,-88,-103,-91,-91,-83,-81,-99,-90,-101,-110,-109,-117,-104,-98,-371,-362,-512,-516,-517,-512,-488,-489,-593,-605,-591,-587,-586,-577]} 1. e4 {[%emt 0:00:03]} e5 {[%emt 0:00:10]} 2. Nf3 {[%emt 0:00:04]} Nc6 {[%emt 0:00:16]} 3. Bb5 {[%emt 0:00:04]} a6 {[%emt 0:00:47]} 4. Ba4 {[%emt 0:00:03]} f5 {[%emt 0:00:18]} 5. d4 {[%emt 0:12:57]} exd4 {[%emt 0:01:48] [#]} 6. exf5 {[%emt 0:02:52] C70: Ruy Lopez: 3...a6 4 Ba4, Norwegian and Delayed Schliemann.} (6. e5 $1 $16) 6... Qe7+ $11 {[%emt 0:01:19]} 7. Qe2 {[%emt 0:01:15]} Qxe2+ {[%emt 0:18:31]} (7... b5 {looks sharper.} 8. Bb3 Bb7 9. a4 Na5) 8. Kxe2 {[%emt 0:00:02] [#] The position is equal.} Nge7 $146 {[%emt 0:00:15]} (8... b5 $5 9. Bb3 Bb7 $11) ({Predecessor:} 8... Bc5 9. Re1 Nge7 10. g4 b5 11. Bb3 Bb7 12. Bg5 O-O-O 13. Nbd2 h6 14. Bh4 h5 {1-0 (23) Mazur,S (2416)-Kett,T (2178) Chess.com INT 2021}) 9. Rd1 {[%emt 0:12:19]} b5 {[%emt 0:15:25]} 10. Bb3 {[%emt 0:00:09]} Nxf5 {[%emt 0:00:20]} 11. g4 {[%emt 0:06:59]} (11. a4 $15 Bb7 12. axb5 axb5 13. Rxa8+ Bxa8 14. Bd5) 11... Nfe7 $17 {[%emt 0:01:01]} 12. a4 {[%emt 0:01:56] [#] Hoping for axb5.} Rb8 {[%emt 0:10:16]} 13. axb5 {[%emt 0:03:26]} axb5 {[%emt 0:00:11]} 14. Bf4 {[%emt 0:22:50]} d6 {[%emt 0:04:07]} 15. Nxd4 {[%emt 0:08:21]} Bxg4+ {[%emt 0:05:21]} 16. f3 {[%emt 0:00:10]} Nxd4+ {[%emt 0:04:45]} 17. Rxd4 {[%emt 0:00:07]} Bf5 {[%emt 0:00:19]} 18. Ra7 $2 {[%emt 0:03:14][%mdl 8192]} (18. Rd1 $17 {was called for.}) 18... Nc6 $1 $19 {[%emt 0:06:56][%csl LRa7,LRd4]} 19. Bf7+ {[%emt 0:02:27]} (19. Rd5 $142 Bxc2 20. Bxc2 Nxa7 21. Be4) 19... Kd7 {[%emt 0:02:41] Black is clearly winning.} 20. Rd5 {[%emt 0:01:05]} Nxa7 {[%emt 0:01:11]} 21. Rxf5 {[%emt 0:00:10]} g6 {[%emt 0:00:56][%cal Bg7g6,Bg6g5][%mdl 32] Prevents Bh5.} 22. Rf6 {[%emt 0:00:47]} Ke7 {[%emt 0:04:22]} 23. Bg5 {[%emt 0:00:10]} h6 {[%emt 0:00:07]} 24. Bh4 {[%emt 0:01:00]} g5 {[%emt 0:00:13] Black took control after the opening.  Weighted Error Value: White=0.68/Black=0.02 (flawless)} 0-1

[Event "55th Biel Festival MTO 2022"]
[Site "Biel"]
[Date "2022.07.18"]
[Round "5.51"]
[White "Martirosyan Haik M."]
[Black "Korley Kassa"]
[Result "1/2-1/2"]
[ECO "D37"]
[WhiteElo "2672"]
[BlackElo "2421"]
[Annotator "TA"]
[PlyCount "109"]
[EventDate "2022.07.13"]
[EventType "swiss"]
[EventCountry "SUI"]
[SourceTitle "playchess.com"]
[Source "ChessBase"]
[SourceQuality "1"]
[TimeControl "40/5400+30:1800+30"]

{[%evp 9,109,18,22,22,36,16,11,17,58,27,32,25,29,26,28,28,25,27,25,25,32,22,28,27,54,22,30,0,4,0,0,0,0,-11,-14,-14,-7,-47,-19,-22,23,-36,-36,-54,-50,-55,-36,-36,-36,-36,-29,-40,-29,-36,-36,-96,-102,-116,-76,-97,-85,-96,-97,-155,-140,-175,-182,-197,-164,-191,-156,-287,-302,-307,-297,-285,0,-290,-264,-255,-125,-103,0,0,0,0,0,0,0,0,0,0,0,0,0,0,0,0,0,0,0,0]} 1. d4 {[%emt 0:00:06]} d5 {[%emt 0:00:06]} 2. c4 {[%emt 0:00:10]} e6 {[%emt 0:00:09]} 3. Nf3 {[%emt 0:00:20]} a6 {[%emt 0:00:15]} 4. cxd5 {[%emt 0:00:46]} exd5 {[%emt 0:00:06]} 5. Nc3 {[%emt 0:00:08]} Nf6 {[%emt 0:00:06]} 6. Bg5 {[%emt 0:00:31] D37: Queen's Gambit Declined: 5 Bf4.} Be6 {[%emt 0:00:30]} 7. Qb3 {[%emt 0:00:34]} Nbd7 {[%emt 0:01:23]} 8. e3 {[%emt 0:00:34]} Bd6 {[%emt 0:00:36]} 9. Bd3 {[%emt 0:02:30]} O-O {[%emt 0:01:48]} 10. O-O {[%emt 0:01:25]} Qb8 {[%emt 0:00:14]} 11. Bf4 {[%emt 0:05:13]} c6 {[%emt 0:00:37]} 12. Bxd6 {[%emt 0:00:46]} Qxd6 {[%emt 0:00:04]} 13. h3 {[%emt 0:00:24] [#]} ({Wrong is} 13. Qxb7 $2 Rfb8 14. Qxa8 Rxa8 $19) 13... Rfc8 $146 {[%emt 0:00:29]} ({Predecessor:} 13... Rfe8 14. a4 a5 15. Qa3 Qb8 16. b4 axb4 17. Qxb4 Nf8 18. Rfb1 Ra7 19. Ne5 Ng6 20. Nxc6 {1-0 (33) Yilmaz,M (2631)-Andreikin,D (2729) Chess.com INT 2022}) 14. Qc2 {[%emt 0:02:24]} ({Don't blunder} 14. Qxb7 $2 Rcb8 15. Qxa8 Rxa8 $19) 14... Rc7 {[%emt 0:01:25]} 15. a3 {[%emt 0:02:20]} Re8 {[%emt 0:02:32]} 16. b4 {[%emt 0:01:33]} Nf8 {[%emt 0:12:18]} 17. Ne5 {[%emt 0:02:41]} N6d7 {[%emt 0:03:53][%cal Bf6d7,Bd7b6,Bb6c8,Bc8d6][%mdl 32]} 18. f4 {[%emt 0:00:25]} f6 {[%emt 0:01:16]} 19. Nf3 {[%emt 0:00:18]} Bf7 {[%emt 0:01:54]} 20. Rae1 {[%emt 0:05:34]} Nb6 {[%emt 0:01:36]} 21. Qd2 {[%emt 0:02:39]} Qd8 {[%emt 0:02:16]} 22. g4 {[%emt 0:02:02]} Nc8 {[%emt 0:04:42]} 23. g5 {[%emt 0:05:37]} Nd6 {[%emt 0:04:17]} 24. gxf6 {[%emt 0:01:30]} gxf6 {[%emt 0:01:11]} 25. Kh2 {[%emt 0:03:55]} (25. f5 $11) 25... Bg6 $15 {[%emt 0:02:49]} 26. Ne2 {[%emt 0:03:07]} Bxd3 {[%emt 0:09:51]} 27. Qxd3 {[%emt 0:00:02]} Ne6 {[%emt 0:00:42]} 28. Rg1+ {[%emt 0:02:22]} Ng7 {[%emt 0:00:16]} 29. Ng3 {[%emt 0:04:09]} Kh8 {[%emt 0:01:36]} 30. Nh4 {[%emt 0:01:02]} Qc8 {[%emt 0:12:42]} 31. Qd1 {[%emt 0:13:06]} Rce7 {[%emt 0:10:29]} 32. Qf3 {[%emt 0:00:56] [#]} (32. Qe2 $15) 32... Nc4 $1 $17 {[%emt 0:07:13][%csl LRa3,LRe3][%cal Re7e3]} 33. e4 {[%emt 0:09:14]} Nd2 {[%emt 0:00:18]} 34. Qg2 {[%emt 0:00:58]} Nxe4 {[%emt 0:00:06]} 35. Nxe4 {[%emt 0:01:00]} Qc7 {[%emt 0:07:04]} 36. Qg4 {[%emt 0:09:15]} Rxe4 {[%emt 0:01:23]} 37. Rxe4 {[%emt 0:00:56]} dxe4 {[%emt 0:00:47]} ({Much less strong is} 37... Rxe4 38. Nf5 $18) 38. Ng2 {[%emt 0:02:06]} f5 {[%emt 0:02:50]} 39. Qg3 {[%emt 0:04:13]} Qd6 {[%emt 0:00:52]} 40. Qc3 {[%emt 0:01:09]} (40. Ne3 $17 Qxd4 41. Qg5) 40... Rd8 $19 {[%emt 0:02:04]} 41. Rd1 {[%emt 0:31:19]} Qf6 {[%emt 0:33:09]} 42. Qc4 {[%emt 0:02:58]} Qd6 {[%emt 0:00:00]} 43. Qc3 $1 {[%emt 0:00:00]} h6 {[%emt 0:00:00]} 44. Qg3 {[%emt 0:00:00]} Ne6 {[%emt 0:00:00]} (44... Qf6 $19 {is more deadly. White must now prevent ...Ne6.} 45. Qh4 Qxh4 46. Nxh4 Rd5) 45. Nh4 {[%emt 0:00:00] [#]} Nxd4 {[%emt 0:00:00]} ({Black should try} 45... Rg8 $1 $17 {[%cal Rg8g3]} 46. Nxf5 Rxg3 47. Nxd6 Rxa3) 46. Nxf5 $11 {[%emt 0:00:00][%csl Gf5][%cal Rg3g7] The position is equal.} Qf6 {[%emt 0:00:00] Inhibits Qg7+. aiming for ...Nf3+.} (46... Nxf5 $2 47. Rxd6 Rxd6 48. Qc3+ Kh7 49. Qe5 $16) 47. Nxd4 {[%emt 0:00:00]} Rxd4 {[%emt 0:00:00][%mdl 4096] Endgame KQR-KQR} 48. Qc3 {[%emt 0:00:00]} Rd6 {[%emt 0:00:00]} 49. Qxf6+ {[%emt 0:00:00]} Rxf6 {[%emt 0:00:00] KR-KR} 50. Kg3 {[%emt 0:00:00]} Kg7 {[%emt 0:00:00]} 51. Rd7+ {[%emt 0:00:00]} Rf7 {[%emt 0:00:00]} 52. Rd6 {[%emt 0:00:00]} Rf6 {[%emt 0:00:00]} 53. Rd7+ {[%emt 0:00:00]} Rf7 {[%emt 0:00:00]} 54. Rd6 {[%emt 0:00:00]} Rf6 {[%emt 0:00:00]} 55. Rd7+ {[%emt 0:00:00] And White is the lucky defender.  Weighted Error Value: White=0.13 (very precise) /Black=0.19 (very precise)} 1/2-1/2

[Event "55th Biel Festival MTO 2022"]
[Site "Biel"]
[Date "2022.07.19"]
[Round "6.1"]
[White "Visakh N R"]
[Black "Aryan Chopra"]
[Result "1/2-1/2"]
[ECO "E15"]
[WhiteElo "2503"]
[BlackElo "2610"]
[Annotator "TA"]
[PlyCount "55"]
[EventDate "2022.07.13"]
[EventType "swiss"]
[EventCountry "SUI"]
[SourceTitle "playchess.com"]
[Source "ChessBase"]
[SourceQuality "1"]
[TimeControl "40/5400+30:1800+30"]

{[%evp 19,55,6,17,22,19,9,11,0,0,0,0,0,0,0,0,12,6,0,2,5,1,0,0,0,0,0,15,15,15,16,20,25,49,52,63,55,50,64]} 1. d4 {[%emt 0:00:07]} Nf6 {[%emt 0:00:05]} 2. c4 {[%emt 0:00:08]} e6 {[%emt 0:00:04]} 3. Nf3 {[%emt 0:00:07]} b6 {[%emt 0:00:15]} 4. g3 {[%emt 0:00:25]} Ba6 {[%emt 0:00:10]} 5. b3 {[%emt 0:00:11]} Bb4+ {[%emt 0:00:14]} 6. Bd2 {[%emt 0:00:09]} Be7 {[%emt 0:00:04]} 7. Nc3 {[%emt 0:00:09]} d5 {[%emt 0:00:22]} 8. cxd5 {[%emt 0:00:47]} exd5 {[%emt 0:00:08]} 9. Bg2 {[%emt 0:00:05]} O-O {[%emt 0:00:28]} 10. O-O {[%emt 0:00:11]} Re8 {[%emt 0:00:14] 10...Nbd7 is a critical line.} 11. Ne5 {[%emt 0:02:57][%cal Ob3b4] E15: Queen's Indian: 4 g3 sidelines, 4 g3 Ba6 and 4 g3 Bb7 early deviations.} Bb7 {[%emt 0:00:14]} 12. Rc1 {[%emt 0:01:19]} Nbd7 {[%emt 0:00:22][%cal Bb8d7,Bd7f8,Bf8e6,Be6f4,Bf4e2][%mdl 32]} 13. Nb5 {[%emt 0:11:32] The position is equal.} c5 {[%emt 0:00:58]} 14. Bf4 {[%emt 0:00:42] Threatening Nxd7.} Nf8 {[%emt 0:02:38]} 15. Nc4 {[%emt 0:07:26] White wants to play Ncd6.} Ne6 {[%emt 0:01:20]} 16. Nbd6 $1 {[%emt 0:17:27]} Nxf4 {[%emt 0:01:57]} 17. Nxb7 {[%emt 0:02:17]} Nxe2+ {[%emt 0:02:28]} 18. Qxe2 {[%emt 0:00:06]} Qd7 {[%emt 0:00:06] [#]} 19. Nxc5 $1 {[%emt 0:12:23]} Bxc5 {[%emt 0:00:58] [#]} 20. Qd1 $146 {[%emt 0:02:15]} ({Predecessor:} 20. Qb2 Bd6 21. Nxd6 Qxd6 22. Rfe1 Rxe1+ {½-½ (22) Lobanov,E (2527)-Buecker,J (2515) ICCF email 2019}) 20... Bd6 {[%emt 0:02:35]} 21. Ne3 {[%emt 0:02:51]} Bf8 {[%emt 0:07:35]} 22. Qf3 {[%emt 0:05:01]} Ne4 {[%emt 0:03:43]} 23. Qf4 {[%emt 0:06:21]} Bd6 {[%emt 0:01:23] Prevents Rc7.} 24. Qf5 {[%emt 0:01:01]} Qxf5 {[%emt 0:00:33]} 25. Nxf5 {[%emt 0:00:02] [#] Hoping for Bxe4.} Ba3 {[%emt 0:13:08]} 26. Rc7 {[%emt 0:01:52] White is slightly better.} Nf6 {[%emt 0:06:19]} 27. Bf3 {[%emt 0:05:10] White is more active.} Kf8 {[%emt 0:01:35]} 28. Ne3 {[%emt 0:04:07] Weighted Error Value: White=0.01 (flawless) /Black=0.04 (flawless)} 1/2-1/2

[Event "55th Biel Festival MTO 2022"]
[Site "Biel"]
[Date "2022.07.19"]
[Round "6.2"]
[White "Alekseenko Kirill"]
[Black "Pranav Anand"]
[Result "1-0"]
[ECO "C50"]
[WhiteElo "2708"]
[BlackElo "2463"]
[Annotator "TA"]
[PlyCount "73"]
[EventDate "2022.07.13"]
[EventType "swiss"]
[EventCountry "SUI"]
[SourceTitle "playchess.com"]
[Source "ChessBase"]
[SourceQuality "1"]
[TimeControl "40/5400+30:1800+30"]

{[%evp 10,73,7,15,15,12,15,0,0,0,0,-5,10,3,3,0,0,3,0,3,4,16,21,25,25,14,5,0,23,0,5,2,22,31,79,77,75,68,86,77,80,87,79,81,78,41,33,42,54,51,236,49,522,497,1141,1114,1077,979,6118,6118,6099,5314,6118,6111,4810,1909]} 1. e4 {[%emt 0:00:05]} e5 {[%emt 0:00:11]} 2. Nf3 {[%emt 0:00:14]} Nc6 {[%emt 0:00:06]} 3. Bc4 {[%emt 0:00:15]} Bc5 {[%emt 0:00:12]} 4. Nc3 {[%emt 0:00:31]} Nf6 {[%emt 0:01:48]} 5. d3 {[%emt 0:00:07]} h6 {[%emt 0:04:12]} 6. h3 {[%emt 0:00:21]} a6 {[%emt 0:05:18] C50: Hungarian Defence and Giuoco Pianissimo.} 7. a4 {[%emt 0:00:27]} d6 {[%emt 0:00:42]} 8. Be3 {[%emt 0:00:25] seems to push 8.0-0 aside.} Bxe3 {[%emt 0:02:41] The position is equal.} 9. fxe3 {[%emt 0:00:06]} Be6 {[%emt 0:01:09]} 10. Nd2 {[%emt 0:00:36]} Bxc4 {[%emt 0:06:56]} 11. Nxc4 {[%emt 0:00:49]} O-O {[%emt 0:02:32]} 12. O-O {[%emt 0:00:26]} d5 {[%emt 0:01:21]} 13. exd5 {[%emt 0:00:09]} Nxd5 {[%emt 0:00:05] [#]} 14. e4 $146 {[%emt 0:00:03]} ({Predecessor:} 14. Qg4 Nxc3 15. bxc3 b5 16. Nd2 Qc8 17. Qxc8 Rfxc8 18. Rfb1 Rab8 19. axb5 axb5 20. Ra6 {½-½ (55) Sindarov,J (2609)-Sargsyan,S (2641) Sharjah 2022}) 14... Nxc3 {[%emt 0:09:23]} 15. bxc3 {[%emt 0:00:07]} b5 {[%emt 0:00:20]} 16. Ne3 {[%emt 0:01:19]} Ne7 {[%emt 0:03:38]} 17. Rf3 {[%emt 0:14:27]} Qd7 {[%emt 0:09:40]} 18. Rg3 {[%emt 0:16:43]} Qe6 {[%emt 0:04:17]} 19. Qh5 {[%emt 0:02:55]} Kh7 {[%emt 0:01:58]} 20. Kh2 {[%emt 0:04:30]} g6 {[%emt 0:07:32]} 21. Qg4 {[%emt 0:00:34]} Qc6 {[%emt 0:15:25]} (21... Qxg4 $14 22. Nxg4 f6) 22. axb5 $16 {[%emt 0:11:34]} axb5 {[%emt 0:02:52]} 23. Rf1 {[%emt 0:00:05]} Ra6 {[%emt 0:05:34][%cal Ba8a6,Ba6c6,Bc6c2][%mdl 32]} 24. Qh4 {[%emt 0:07:01]} Qe8 {[%emt 0:01:20]} 25. Rgf3 {[%emt 0:03:18] Against f5} Rc6 {[%emt 0:01:41]} 26. d4 {[%emt 0:04:22] Strongly threatening Ng4.} Ng8 {[%emt 0:05:03]} 27. Nd5 {[%emt 0:03:38] White is more active.} exd4 {[%emt 0:00:32]} 28. cxd4 {[%emt 0:00:11]} Rxc2 {[%emt 0:01:00]} 29. e5 $36 {[%emt 0:07:15][%mdl 2048] White is pushing.} c5 $2 {[%emt 0:00:27] [#]} ({Black should try} 29... Rc6 $1 $14) 30. Nf4 $2 {[%emt 0:07:22]} ({White must play} 30. Rf6 $1 $18 {[%mdl 512]} Rd2 (30... Kh8 31. e6) 31. e6 Qb8+ 32. Kg1 Nxf6 33. Nxf6+ Kg7 34. e7 Rxd4 35. Ng4 Rxg4 36. Qf6+ Kg8 37. hxg4) 30... f6 $2 {[%emt 0:05:01][%mdl 8192] [#]} (30... cxd4 $2 31. Nxg6 $1 {[%mdl 512]} fxg6 32. Rxf8 Qxe5+ 33. Qf4 Qxf4+ 34. R1xf4 $18) (30... g5 $14 31. Qe1 f5) 31. Nxg6 $1 $18 {[%emt 0:01:24][%mdl 64] Decoy. White is clearly winning.} Kxg6 {[%emt 0:02:12]} (31... Qxg6 $142 32. Rg3 Qf7) 32. Qe4+ {[%emt 0:00:55]} Kg7 {[%emt 0:00:08]} 33. Qxc2 {[%emt 0:01:37]} cxd4 {[%emt 0:00:05]} 34. Qc7+ {[%emt 0:00:46]} Qf7 {[%emt 0:00:44]} 35. exf6+ {[%emt 0:00:50]} Nxf6 {[%emt 0:00:24]} 36. Qe5 {[%emt 0:00:20]} d3 {[%emt 0:01:22]} 37. Rxd3 {[%emt 0:00:47] Weighted Error Value: White=0.12 (very precise) /Black=0.37} 1-0